fUST/lending_fUST_20250628
["ID","MTS","AMOUNT","RATE_DAILY","PERIOD"]
[368187552,1751053842435,-460.0,0.00019452,2]
[368187553,1751053842444,-814.23,0.00019452,2]
[368187554,1751053842454,-693.24,0.00019452,2]
[368187555,1751053842464,-460.0,0.00019452,2]
[368187556,1751053842473,-460.0,0.00019452,2]
[368187557,1751053842483,-460.0,0.00019452,2]
[368187558,1751053842492,-8109.64,0.00019452,2]
[368187561,1751053842640,-460.0,0.00019452,2]
[368187562,1751053842651,-460.0,0.00019452,2]
[368187564,1751053842660,-460.0,0.00019452,2]
[368187566,1751053842669,-1086.05,0.00019452,2]
[368187567,1751053842679,-460.0,0.00019452,2]
[368187568,1751053842689,-460.0,0.00019452,2]
[368187569,1751053842699,-295.4470454,0.00019452,2]
[368187570,1751053842708,-460.0,0.00019452,2]
[368187571,1751053842717,-1689.17,0.00019452,2]
[368187572,1751053842726,-460.0,0.00019452,2]
[368187573,1751053842736,-460.0,0.00019452,2]
[368187574,1751053842745,-460.0,0.00019452,2]
[368187575,1751053842754,-3624.49,0.00019452,2]
[368187577,1751053842764,-460.0,0.00019452,2]
[368187579,1751053842773,-460.0,0.00019452,2]
[368187581,1751053842782,-460.0,0.00019452,2]
[368187583,1751053842791,-460.0,0.00019452,2]
[368187585,1751053842801,-2205.06,0.00019452,2]
[368187587,1751053842810,-460.0,0.00019452,2]
[368187589,1751053842819,-240.64718336,0.00019452,2]
[368187591,1751053842829,-524.72,0.00019452,2]
[368187593,1751053842839,-460.0,0.00019452,2]
[368187595,1751053842848,-460.0,0.00019452,2]
[368187597,1751053842857,-358.20961028,0.00019452,2]
[368187599,1751053842866,-855.54,0.00019452,2]
[368187601,1751053842876,-460.0,0.00019452,2]
[368187603,1751053842886,-460.0,0.00019452,2]
[368187605,1751053842895,-884.62,0.00019452,2]
[368187607,1751053842905,-4382.09,0.00019452,2]
[368187609,1751053842914,-876.42,0.00019452,2]
[368187610,1751053842924,-2269.22702627,0.00019489,2]
[368187611,1751053842933,-500.0,0.00019524,2]
[368187612,1751053842943,-500.0,0.00019532,2]
[368187613,1751053842952,-500.0,0.00019532,2]
[368187614,1751053842962,-500.0,0.00019532,2]
[368187615,1751053842972,-500.0,0.00019532,2]
[368187616,1751053842982,-500.0,0.00019624,2]
[368187617,1751053842991,-500.0,0.00019664,2]
[368187618,1751053843001,-501.23205749,0.00019664,2]
[368187619,1751053843011,-204.50798009,0.00019664,2]
[368187620,1751053843021,-500.0,0.00019664,2]
[368187621,1751053843031,-500.0,0.00019664,2]
[368187622,1751053843040,-460.0,0.00019726,2]
[368187623,1751053843050,-460.0,0.00019726,2]
[368187624,1751053843059,-460.0,0.00019726,2]
[368187625,1751053843069,-460.0,0.00019726,2]
[368187626,1751053843079,-460.0,0.00019726,2]
[368187627,1751053843088,-601.78491215,0.00019726,2]
[368187628,1751053843097,-460.0,0.00019726,2]
[368187629,1751053843106,-460.0,0.00019726,2]
[368187630,1751053843116,-602.22,0.00019726,2]
[368187631,1751053843126,-460.0,0.00019726,2]
[368187632,1751053843137,-460.0,0.00019726,2]
[368187633,1751053843146,-460.0,0.00019726,2]
[368187634,1751053843156,-691.31,0.00019726,2]
[368187635,1751053843166,-460.0,0.00019726,2]
[368187636,1751053843176,-460.0,0.00019726,2]
[368187637,1751053843186,-460.0,0.00019726,2]
[368187638,1751053843195,-460.0,0.00019726,2]
[368187639,1751053843205,-895.91,0.00019726,2]
[368187640,1751053843214,-460.0,0.00019726,2]
[368187641,1751053843223,-501.78,0.00019726,2]
[368187642,1751053843233,-460.0,0.00019726,2]
[368187643,1751053843242,-460.0,0.00019726,2]
[368187644,1751053843252,-460.0,0.00019726,2]
[368187645,1751053843262,-460.0,0.00019726,2]
[368187646,1751053843271,-480.75,0.00019726,2]
[368187647,1751053843280,-460.0,0.00019726,2]
[368187648,1751053843291,-460.0,0.00019726,2]
[368187649,1751053843301,-460.0,0.00019726,2]
[368187650,1751053843310,-460.0,0.00019726,2]
[368187651,1751053843320,-460.0,0.00019726,2]
[368187652,1751053843331,-243.63865367,0.00019726,2]
[368187653,1751053843341,-460.0,0.00019726,2]
[368187654,1751053843351,-460.0,0.00019726,2]
[368187655,1751053843360,-460.0,0.00019726,2]
[368187656,1751053843370,-460.0,0.00019726,2]
[368187657,1751053843380,-460.0,0.00019726,2]
[368187658,1751053843390,-460.0,0.00019726,2]
[368187659,1751053843400,-155.96679068,0.00019726,2]
[368187660,1751053843409,-460.0,0.00019726,2]
[368187661,1751053843419,-460.0,0.00019726,2]
[368187662,1751053843427,-460.0,0.00019726,2]
[368187663,1751053843437,-460.0,0.00019726,2]
[368187664,1751053843447,-460.0,0.00019726,2]
[368187665,1751053843456,-491.59784857,0.00019726,2]
[368187666,1751053843465,-460.0,0.00019726,2]
[368187667,1751053843476,-460.0,0.00019726,2]
[368187668,1751053843485,-460.0,0.00019726,2]
[368187669,1751053843494,-460.0,0.00019726,2]
[368187670,1751053843503,-460.0,0.00019726,2]
[368187671,1751053843513,-906.52,0.00019726,2]
[368187672,1751053843523,-596.37,0.00019726,2]
[368187673,1751053843533,-460.0,0.00019726,2]
[368187674,1751053843542,-495.9,0.00019726,2]
[368187675,1751053843551,-460.0,0.00019726,2]
[368187676,1751053843561,-460.0,0.00019726,2]
[368187677,1751053843570,-460.0,0.00019726,2]
[368187678,1751053843580,-460.0,0.00019726,2]
[368187679,1751053843589,-460.0,0.00019726,2]
[368187680,1751053843598,-460.0,0.00019726,2]
[368187681,1751053843607,-460.0,0.00019726,2]
[368187682,1751053843616,-460.0,0.00019726,2]
[368187683,1751053843626,-460.0,0.00019726,2]
[368187684,1751053843636,-460.0,0.00019726,2]
[368187685,1751053843647,-460.0,0.00019726,2]
[368187686,1751053843656,-460.0,0.00019726,2]
[368187687,1751053843665,-814.93,0.00019726,2]
[368187688,1751053843675,-1058.59,0.00019726,2]
[368187689,1751053843685,-460.0,0.00019726,2]
[368187690,1751053843695,-180.94,0.00019726,2]
[368187691,1751053843704,-574.2483463,0.00019726,2]
[368187692,1751053843713,-460.0,0.00019726,2]
[368187693,1751053843722,-638.46,0.00019726,2]
[368187694,1751053843732,-500.0,0.00019726,2]
[368187695,1751053843741,-460.0,0.00019726,2]
[368187696,1751053843751,-460.0,0.00019726,2]
[368187697,1751053843760,-460.0,0.00019726,2]
[368187699,1751053843770,-549.61,0.00019726,2]
[368187700,1751053843779,-460.0,0.00019726,2]
[368187702,1751053843788,-460.0,0.00019726,2]
[368187704,1751053843797,-460.0,0.00019726,2]
[368187705,1751053843807,-460.0,0.00019726,2]
[368187706,1751053843816,-2242.83,0.00019726,2]
[368187707,1751053843825,-460.0,0.00019726,2]
[368187708,1751053843834,-460.0,0.00019726,2]
[368187709,1751053843844,-460.0,0.00019726,2]
[368187710,1751053843853,-633.0,0.00019726,2]
[368187711,1751053843863,-619.29,0.00019726,2]
[368187712,1751053843872,-552.30136842,0.00019726,2]
[368187713,1751053843882,-784.22,0.00019726,2]
[368187714,1751053843892,-460.0,0.00019726,2]
[368187715,1751053843902,-460.0,0.00019726,2]
[368187716,1751053843911,-330.22140276,0.00019726,2]
[368187717,1751053843921,-646.64,0.00019726,2]
[368187718,1751053843930,-603.09,0.00019726,2]
[368187719,1751053843941,-842.86,0.00019726,2]
[368187720,1751053843951,-460.0,0.00019726,2]
[368187721,1751053843960,-734.51,0.00019726,2]
[368187722,1751053843970,-1307.19,0.00019726,2]
[368187723,1751053843979,-460.0,0.00019726,2]
[368187724,1751053843989,-568.8,0.00019726,2]
[368187725,1751053843999,-460.0,0.00019726,2]
[368187726,1751053844009,-2113.32,0.00019726,2]
[368187727,1751053844019,-460.0,0.00019726,2]
[368187728,1751053844029,-460.0,0.00019726,2]
[368187729,1751053844038,-483.6,0.00019726,2]
[368187730,1751053844047,-468.81,0.00019726,2]
[368187731,1751053844057,-460.0,0.00019726,2]
[368187732,1751053844066,-848.41,0.00019726,2]
[368187733,1751053844075,-460.0,0.00019726,2]
[368187734,1751053844085,-460.0,0.00019726,2]
[368187735,1751053844094,-460.0,0.00019726,2]
[368187736,1751053844103,-3785.4,0.00019726,2]
[368187737,1751053844113,-460.0,0.00019726,2]
[368187738,1751053844122,-460.0,0.00019726,2]
[368187739,1751053844132,-3582.34,0.00019726,2]
[368187740,1751053844142,-460.0,0.00019726,2]
[368187741,1751053844151,-1149.0,0.00019726,2]
[368187742,1751053844161,-574.04,0.00019726,2]
[368187743,1751053844170,-460.0,0.00019726,2]
[368187744,1751053844179,-460.0,0.00019726,2]
[368187745,1751053844188,-4447.6,0.00019726,2]
[368187746,1751053844197,-460.0,0.00019726,2]
[368187747,1751053844207,-6901.52,0.00019726,2]
[368187748,1751053844216,-460.0,0.00019726,2]
[368187749,1751053844226,-460.0,0.00019726,2]
[368187750,1751053844235,-852.45,0.00019726,2]
[368187751,1751053844244,-460.0,0.00019726,2]
[368187752,1751053844255,-460.0,0.00019726,2]
[368187753,1751053844264,-679.41,0.00019726,2]
[368187754,1751053844274,-565.42,0.00019726,2]
[368187755,1751053844283,-460.0,0.00019726,2]
[368187756,1751053844295,-343.99708836,0.00019726,2]
[368187757,1751053844304,-460.0,0.00019726,2]
[368187758,1751053844312,-460.0,0.00019726,2]
[368187759,1751053844321,-460.0,0.00019726,2]
[368187760,1751053844331,-2405.58,0.00019726,2]
[368187761,1751053844342,-1768.21,0.00019726,2]
[368187762,1751053844351,-460.0,0.00019726,2]
[368187763,1751053844363,-460.0,0.00019726,2]
[368187764,1751053844373,-682.75,0.00019726,2]
[368187765,1751053844383,-460.0,0.00019726,2]
[368187766,1751053844392,-1787.48,0.00019726,2]
[368187767,1751053844402,-460.0,0.00019726,2]
[368187768,1751053844412,-822.23,0.00019726,2]
[368187769,1751053844421,-460.0,0.00019726,2]
[368187770,1751053844431,-460.0,0.00019726,2]
[368187771,1751053844440,-954.48,0.00019726,2]
[368187772,1751053844451,-2374.8,0.00019726,2]
[368187773,1751053844460,-502.63,0.00019726,2]
[368187774,1751053844470,-460.0,0.00019726,2]
[368187775,1751053844479,-460.0,0.00019726,2]
[368187776,1751053844488,-1416.54,0.00019726,2]
[368187777,1751053844497,-2471.16,0.00019726,2]
[368187778,1751053844506,-460.0,0.00019726,2]
[368187779,1751053844515,-460.0,0.00019726,2]
[368187780,1751053844525,-839.48,0.00019726,2]
[368187781,1751053844535,-460.0,0.00019726,2]
[368187782,1751053844544,-460.0,0.00019726,2]
[368187783,1751053844553,-460.0,0.00019726,2]
[368187784,1751053844562,-607.0,0.00019726,2]
[368187785,1751053844571,-813.61,0.00019726,2]
[368187786,1751053844580,-6207.0,0.00019726,2]
[368187787,1751053844590,-460.0,0.00019726,2]
[368187788,1751053844599,-460.0,0.00019726,2]
[368187789,1751053844608,-596.72,0.00019726,2]
[368187790,1751053844618,-460.0,0.00019726,2]
[368187791,1751053844627,-460.0,0.00019726,2]
[368187792,1751053844636,-460.0,0.00019726,2]
[368187793,1751053844646,-2116.86,0.00019726,2]
[368187794,1751053844655,-3896.14,0.00019726,2]
[368187795,1751053844664,-460.0,0.00019726,2]
[368187796,1751053844673,-460.0,0.00019726,2]
[368187797,1751053844683,-460.0,0.00019726,2]
[368187798,1751053844693,-875.63,0.00019726,2]
[368187799,1751053844702,-460.0,0.00019726,2]
[368187800,1751053844711,-814.23,0.00019726,2]
[368187801,1751053844721,-693.24,0.00019726,2]
[368187802,1751053844730,-460.0,0.00019726,2]
[368187803,1751053844739,-460.0,0.00019726,2]
[368187804,1751053844748,-460.0,0.00019726,2]
[368187805,1751053844758,-8109.64,0.00019726,2]
[368187806,1751053844767,-460.0,0.00019726,2]
[368187807,1751053844777,-460.0,0.00019726,2]
[368187808,1751053844787,-460.0,0.00019726,2]
[368187809,1751053844796,-1086.05,0.00019726,2]
[368187810,1751053844806,-460.0,0.00019726,2]
[368187811,1751053844815,-460.0,0.00019726,2]
[368187812,1751053844824,-460.0,0.00019726,2]
[368187813,1751053844833,-1689.17,0.00019726,2]
[368187814,1751053844843,-460.0,0.00019726,2]
[368187815,1751053844852,-400.17760738,0.00019726,2]
[368187816,1751053844862,-460.0,0.00019726,2]
[368187817,1751053844871,-3624.49,0.00019726,2]
[368187818,1751053844880,-603.45203309,0.00019726,2]
[368187819,1751053844890,-460.0,0.00019726,2]
[368187820,1751053844899,-460.0,0.00019726,2]
[368187821,1751053844909,-460.0,0.00019726,2]
[368187822,1751053844920,-2205.06,0.00019726,2]
[368187823,1751053844929,-460.0,0.00019726,2]
[368187824,1751053844939,-524.72,0.00019726,2]
[368187825,1751053844984,-460.0,0.00019726,2]
[368187826,1751053844994,-855.54,0.00019726,2]
[368187827,1751053845003,-460.0,0.00019726,2]
[368187828,1751053845014,-470.23712706,0.00019726,2]
[368187829,1751053845023,-884.62,0.00019726,2]
[368187830,1751053845034,-4382.09,0.00019726,2]
[368187831,1751053845043,-420.0,0.0001982,2]
[368187832,1751053845052,-2269.22702627,0.000199,2]
[368187833,1751053845061,-6150.84987314,0.000199,2]
[368187834,1751053845070,-5000.0,0.00019938,2]
[368187835,1751053845079,-207.4,0.00019938,2]
[368187836,1751053845089,-460.0,0.0002,2]
[368187837,1751053845098,-460.0,0.0002,2]
[368187838,1751053845106,-460.0,0.0002,2]
[368187839,1751053845115,-460.0,0.0002,2]
[368187840,1751053845124,-460.0,0.0002,2]
[368187841,1751053845133,-460.0,0.0002,2]
[368187842,1751053845143,-450.29785659,0.0002,2]
[368187843,1751053845152,-691.31,0.0002,2]
[368187844,1751053845161,-460.0,0.0002,2]
[368187845,1751053845170,-460.0,0.0002,2]
[368187846,1751053845179,-460.0,0.0002,2]
[368187847,1751053845188,-460.0,0.0002,2]
[368187848,1751053845197,-895.91,0.0002,2]
[368187849,1751053845207,-361.5271153,0.0002,2]
[368187850,1751053845216,-501.78,0.0002,2]
[368187851,1751053845225,-460.0,0.0002,2]
[368187852,1751053845234,-460.0,0.0002,2]
[368187853,1751053845243,-460.0,0.0002,2]
[368187854,1751053845252,-480.75,0.0002,2]
[368187855,1751053845261,-460.0,0.0002,2]
[368187856,1751053845271,-460.0,0.0002,2]
[368187857,1751053845280,-460.0,0.0002,2]
[368187858,1751053845294,-460.0,0.0002,2]
[368187859,1751053845304,-460.0,0.0002,2]
[368187860,1751053845313,-460.0,0.0002,2]
[368187861,1751053845322,-460.0,0.0002,2]
[368187862,1751053845332,-460.0,0.0002,2]
[368187863,1751053845342,-460.0,0.0002,2]
[368187864,1751053845351,-460.0,0.0002,2]
[368187865,1751053845360,-460.0,0.0002,2]
[368187866,1751053845370,-460.0,0.0002,2]
[368187867,1751053845379,-460.0,0.0002,2]
[368187868,1751053845390,-460.0,0.0002,2]
[368187869,1751053845399,-460.0,0.0002,2]
[368187870,1751053845408,-460.0,0.0002,2]
[368187871,1751053845417,-460.0,0.0002,2]
[368187872,1751053845426,-460.0,0.0002,2]
[368187873,1751053845436,-460.0,0.0002,2]
[368187874,1751053845445,-906.52,0.0002,2]
[368187875,1751053845454,-596.37,0.0002,2]
[368187876,1751053845463,-460.0,0.0002,2]
[368187877,1751053845472,-495.9,0.0002,2]
[368187878,1751053845481,-460.0,0.0002,2]
[368187879,1751053845491,-460.0,0.0002,2]
[368187880,1751053845500,-460.0,0.0002,2]
[368187881,1751053845510,-460.0,0.0002,2]
[368187882,1751053845519,-460.0,0.0002,2]
[368187883,1751053845529,-601.8,0.0002,2]
[368187884,1751053845538,-460.0,0.0002,2]
[368187885,1751053845547,-460.0,0.0002,2]
[368187886,1751053845556,-321.22,0.0002,2]
[368187887,1751053845566,-460.0,0.0002,2]
[368187888,1751053845575,-460.0,0.0002,2]
[368187889,1751053845585,-814.93,0.0002,2]
[368187890,1751053845594,-1058.59,0.0002,2]
[368187891,1751053845604,-460.0,0.0002,2]
[368187892,1751053845613,-460.0,0.0002,2]
[368187893,1751053845622,-638.46,0.0002,2]
[368187894,1751053845631,-460.0,0.0002,2]
[368187895,1751053845641,-460.0,0.0002,2]
[368187896,1751053845651,-460.0,0.0002,2]
[368187897,1751053845660,-549.61,0.0002,2]
[368187898,1751053845669,-460.0,0.0002,2]
[368187899,1751053845679,-460.0,0.0002,2]
[368187900,1751053845688,-460.0,0.0002,2]
[368187901,1751053845697,-471.98705521,0.0002,2]
[368187902,1751053845706,-2242.83,0.0002,2]
[368187903,1751053845715,-460.0,0.0002,2]
[368187904,1751053845724,-460.0,0.0002,2]
[368187905,1751053845733,-460.0,0.0002,2]
[368187906,1751053845742,-633.0,0.0002,2]
[368187907,1751053845752,-619.29,0.0002,2]
[368187908,1751053845761,-784.22,0.0002,2]
[368187909,1751053845770,-460.0,0.0002,2]
[368187910,1751053845779,-460.0,0.0002,2]
[368187911,1751053845787,-646.64,0.0002,2]
[368187912,1751053845796,-603.09,0.0002,2]
[368187913,1751053845805,-842.86,0.0002,2]
[368187914,1751053845814,-460.0,0.0002,2]
[368187915,1751053845823,-734.51,0.0002,2]
[368187916,1751053845832,-1307.19,0.0002,2]
[368187917,1751053845841,-460.0,0.0002,2]
[368187918,1751053845851,-568.8,0.0002,2]
[368187919,1751053845860,-460.0,0.0002,2]
[368187920,1751053845870,-2113.32,0.0002,2]
[368187921,1751053845880,-460.0,0.0002,2]
[368187922,1751053845890,-483.6,0.0002,2]
[368187923,1751053845899,-468.81,0.0002,2]
[368187924,1751053845908,-460.0,0.0002,2]
[368187925,1751053845917,-848.41,0.0002,2]
[368187926,1751053845926,-460.0,0.0002,2]
[368187927,1751053845935,-460.0,0.0002,2]
[368187928,1751053845944,-460.0,0.0002,2]
[368187929,1751053845954,-3785.4,0.0002,2]
[368187930,1751053845963,-460.0,0.0002,2]
[368187931,1751053845973,-492.14427431,0.0002,2]
[368187932,1751053845982,-3582.34,0.0002,2]
[368187933,1751053845991,-460.0,0.0002,2]
[368187934,1751053846000,-1149.0,0.0002,2]
[368187935,1751053846009,-574.04,0.0002,2]
[368187936,1751053846018,-460.0,0.0002,2]
[368187937,1751053846027,-460.0,0.0002,2]
[368187939,1751053846036,-4447.6,0.0002,2]
[368187940,1751053846045,-460.0,0.0002,2]
[368187942,1751053846055,-6901.52,0.0002,2]
[368187943,1751053846064,-460.0,0.0002,2]
[368187944,1751053846073,-460.0,0.0002,2]
[368187945,1751053846082,-852.45,0.0002,2]
[368187946,1751053846091,-460.0,0.0002,2]
[368187947,1751053846100,-460.0,0.0002,2]
[368187948,1751053846109,-679.41,0.0002,2]
[368187949,1751053846118,-565.42,0.0002,2]
[368187950,1751053846128,-460.0,0.0002,2]
[368187951,1751053846137,-460.0,0.0002,2]
[368187952,1751053846146,-460.0,0.0002,2]
[368187953,1751053846156,-460.0,0.0002,2]
[368187954,1751053846165,-2405.58,0.0002,2]
[368187955,1751053846175,-1768.21,0.0002,2]
[368187956,1751053846184,-460.0,0.0002,2]
[368187957,1751053846193,-682.75,0.0002,2]
[368187958,1751053846202,-460.0,0.0002,2]
[368187959,1751053846212,-1787.48,0.0002,2]
[368187960,1751053846221,-460.0,0.0002,2]
[368187961,1751053846230,-822.23,0.0002,2]
[368187962,1751053846240,-460.0,0.0002,2]
[368187963,1751053846250,-460.0,0.0002,2]
[368187964,1751053846259,-954.48,0.0002,2]
[368187965,1751053846268,-2374.8,0.0002,2]
[368187966,1751053846278,-502.63,0.0002,2]
[368187967,1751053846291,-460.0,0.0002,2]
[368187968,1751053846301,-460.0,0.0002,2]
[368187969,1751053846310,-1416.54,0.0002,2]
[368187970,1751053846319,-2471.16,0.0002,2]
[368187971,1751053846330,-460.0,0.0002,2]
[368187972,1751053846339,-460.0,0.0002,2]
[368187973,1751053846348,-839.48,0.0002,2]
[368187974,1751053846358,-460.0,0.0002,2]
[368187975,1751053846368,-460.0,0.0002,2]
[368187976,1751053846378,-460.0,0.0002,2]
[368187977,1751053846388,-607.0,0.0002,2]
[368187978,1751053846398,-813.61,0.0002,2]
[368187979,1751053846407,-6207.0,0.0002,2]
[368187980,1751053846417,-460.0,0.0002,2]
[368187981,1751053846427,-460.0,0.0002,2]
[368187982,1751053846436,-596.72,0.0002,2]
[368187983,1751053846446,-460.0,0.0002,2]
[368187984,1751053846456,-460.0,0.0002,2]
[368187985,1751053846466,-2116.86,0.0002,2]
[368187986,1751053846476,-3896.14,0.0002,2]
[368187987,1751053846486,-460.0,0.0002,2]
[368187988,1751053846496,-416.55,0.0002,2]
[368187989,1751053846506,-875.63,0.0002,2]
[368187990,1751053846516,-460.0,0.0002,2]
[368187991,1751053846526,-814.23,0.0002,2]
[368187992,1751053846535,-693.24,0.0002,2]
[368187993,1751053846545,-460.0,0.0002,2]
[368187994,1751053846555,-460.0,0.0002,2]
[368187995,1751053846565,-460.0,0.0002,2]
[368187996,1751053846574,-8109.64,0.0002,2]
[368187997,1751053846583,-460.0,0.0002,2]
[368187998,1751053846593,-460.0,0.0002,2]
[368187999,1751053846602,-1086.05,0.0002,2]
[368188000,1751053846612,-460.0,0.0002,2]
[368188001,1751053846621,-460.0,0.0002,2]
[368188002,1751053846631,-460.0,0.0002,2]
[368188003,1751053846643,-1689.17,0.0002,2]
[368188004,1751053846653,-460.0,0.0002,2]
[368188005,1751053846663,-460.0,0.0002,2]
[368188006,1751053846672,-3624.49,0.0002,2]
[368188007,1751053846682,-460.0,0.0002,2]
[368188008,1751053846691,-460.0,0.0002,2]
[368188009,1751053846701,-2205.06,0.0002,2]
[368188010,1751053846710,-460.0,0.0002,2]
[368188011,1751053846720,-524.72,0.0002,2]
[368188012,1751053846730,-460.0,0.0002,2]
[368188013,1751053846739,-855.54,0.0002,2]
[368188014,1751053846749,-460.0,0.0002,2]
[368188015,1751053846759,-884.62,0.0002,2]
[368188016,1751053846768,-4382.09,0.0002,2]
[368188017,1751053846778,-151.0,0.00020028,2]
[368188018,1751053846787,-151.0,0.00020028,2]
[368188019,1751053846796,-151.0,0.00020028,2]
[368188020,1751053846806,-151.0,0.00020028,2]
[368188021,1751053846815,-151.0,0.00020028,2]
[368188022,1751053846825,-151.0,0.00020028,2]
[368188023,1751053846835,-500.0,0.00020028,2]
[368188024,1751053846845,-151.0,0.00020028,2]
[368188025,1751053846855,-151.0,0.00020028,2]
[368188026,1751053846865,-151.0,0.00020055,2]
[368188027,1751053846875,-151.0,0.00020055,2]
[368188028,1751053846884,-151.0,0.00020055,2]
[368188029,1751053846894,-151.0,0.00020055,2]
[368188030,1751053846904,-151.0,0.00020055,2]
[368188031,1751053846913,-151.0,0.00020055,2]
[368188032,1751053846923,-628.6042664,0.00020055,2]
[368188033,1751053846933,-151.0,0.00020055,2]
[368188034,1751053846943,-151.0,0.00020055,2]
[368188035,1751053846953,-847.04181546,0.00020059,2]
[368188036,1751053846963,-230.26210603,0.00020059,2]
[368188037,1751053846974,-160.0,0.00020059,2]
[368188038,1751053846983,-836.98798914,0.00020059,2]
[368188039,1751053846993,-160.0,0.00020059,2]
[368188040,1751053847003,-214.91804724,0.00020059,2]
[368188041,1751053847014,-160.0,0.00020059,2]
[368188042,1751053847024,-12562.41216491,0.00020059,2]
[368188043,1751053847034,-160.0,0.00020064,2]
[368188044,1751053847044,-160.0,0.00020064,2]
[368188045,1751053847053,-500.0,0.00020072,2]
[368188046,1751053847063,-1000.0,0.0002008,2]
[368188047,1751053847072,-547.6610821,0.0002008,2]
[368188048,1751053847082,-500.0,0.0002008,2]
[368188049,1751053847092,-177.4788171,0.00020082,2]
[368188050,1751053847101,-571.0556217,0.00020082,2]
[368188051,1751053847111,-177.4788171,0.00020082,2]
[368188052,1751053847120,-159.2394861,0.00020082,2]
[368188053,1751053847129,-151.0,0.00020083,2]
[368188054,1751053847140,-151.0,0.00020083,2]
[368188055,1751053847150,-151.0,0.00020083,2]
[368188056,1751053847159,-151.0,0.0002011,2]
[368188057,1751053847169,-151.0,0.0002011,2]
[368188058,1751053847178,-151.0,0.0002011,2]
[368188059,1751053847187,-151.0,0.00020138,2]
[368188060,1751053847197,-151.0,0.00020138,2]
[368188061,1751053847207,-151.0,0.00020138,2]
[368188062,1751053847216,-6150.849873,0.00020141,2]
[368188063,1751053847226,-245.0,0.00020165,2]
[368188064,1751053847235,-245.0,0.00020165,2]
[368188065,1751053847245,-245.0,0.00020165,2]
[368188066,1751053847254,-201.66384461,0.00020173,2]
[368188067,1751053847263,-501.835303,0.00020187,2]
[368188068,1751053847273,-502.89649884,0.00020212,2]
[368188069,1751053847285,-500.0,0.00020212,2]
[368188070,1751053847296,-153.0,0.00020219,2]
[368188071,1751053847306,-153.0,0.00020219,2]
[368188072,1751053847315,-153.0,0.00020219,2]
[368188073,1751053847324,-153.0,0.00020219,2]
[368188074,1751053847334,-153.0,0.00020219,2]
[368188075,1751053847345,-410.74724265,0.00020273,2]
[368188076,1751053847355,-460.0,0.00020273,2]
[368188077,1751053847365,-186.00548971,0.00020273,2]